bitfinex/quotes_BTCUSD_20250527
["timestamp","ask_amount","ask_price","bid_price","bid_amount"]
[1748377514204,0.17713277,109810.0,109800.0,2.61708835]
[1748377514422,0.17713277,109810.0,109800.0,2.79923771]
[1748377514651,0.17713277,109810.0,109800.0,2.60798089]
[1748377515090,0.17713277,109810.0,109800.0,2.79013025]
[1748377516103,0.17713277,109810.0,109800.0,2.60798089]
[1748377517090,0.17713277,109810.0,109800.0,2.34708059]
[1748377517549,0.17713277,109810.0,109800.0,2.16493123]
[1748377517776,0.17713277,109810.0,109800.0,2.34708059]
[1748377518218,0.17713277,109810.0,109800.0,2.16493123]
[1748377518690,0.17713277,109810.0,109800.0,2.15582377]
[1748377518914,0.17713277,109810.0,109800.0,2.60798089]
[1748377521831,0.17713277,109810.0,109800.0,3.18321025]
[1748377522075,0.17713277,109810.0,109800.0,3.00106089]
[1748377522509,0.17713277,109810.0,109800.0,3.18321025]
[1748377522730,0.17713277,109810.0,109800.0,3.00090089]
[1748377522944,0.17713277,109810.0,109800.0,2.99170785]
[1748377524237,0.17713277,109810.0,109800.0,2.53955073]
[1748377526654,0.17713277,109810.0,109800.0,2.80914009]
[1748377526878,0.17713277,109810.0,109800.0,3.26129721]
[1748377527114,0.17713277,109810.0,109800.0,3.07914785]
[1748377528428,0.17713277,109810.0,109800.0,2.62699073]
[1748377529289,0.17713277,109810.0,109800.0,2.59409073]
[1748377533949,0.17713277,109810.0,109800.0,2.54409073]
[1748377535011,0.17713277,109810.0,109800.0,2.74445493]
[1748377535445,0.17713277,109810.0,109800.0,2.75356214]
[1748377535660,0.17713277,109810.0,109800.0,3.20571926]
[1748377536204,0.17713277,109810.0,109800.0,3.21482639]
[1748377536434,0.17713277,109810.0,109800.0,3.22393344]
[1748377536676,0.00910647,109810.0,109800.0,3.21482598]
[1748377536904,0.03642463,109810.0,109800.0,3.26612499]
[1748377537129,0.03642463,109810.0,109800.0,3.29642499]
[1748377537568,0.03642463,109810.0,109800.0,3.29542499]
[1748377537786,0.04553159,109810.0,109800.0,3.28831827]
[1748377538018,0.03642504,109810.0,109800.0,3.28415827]
[1748377538473,0.02731857,109810.0,109800.0,3.28415827]
[1748377538933,0.01821219,109810.0,109800.0,3.28615827]
[1748377539162,0.25500449,109830.0,109810.0,0.21945167]
[1748377539392,0.25500449,109830.0,109810.0,0.5667614]
[1748377539393,0.01821078,109820.0,109810.0,0.5667614]
[1748377539616,0.01821053,109820.0,109810.0,1.08959535]
[1748377539838,0.01821053,109820.0,109810.0,1.42959535]
[1748377540061,0.02731609,109820.0,109810.0,1.42959535]
[1748377540267,0.01821053,109820.0,109810.0,1.43059535]
[1748377540518,0.03642172,109820.0,109810.0,2.33590959]
[1748377540765,0.03642164,109820.0,109810.0,2.33490959]
[1748377541186,0.03642164,109820.0,109810.0,2.33590959]
[1748377542277,0.03642164,109820.0,109810.0,2.33490959]
[1748377542507,0.03642164,109820.0,109810.0,2.33590959]
[1748377543358,0.22764363,109820.0,109810.0,1.43159535]
[1748377543580,0.22764363,109820.0,109810.0,2.30370959]
[1748377544020,0.22764363,109820.0,109810.0,2.29460354]
[1748377544454,0.03642164,109820.0,109810.0,2.30370959]
[1748377544691,0.04552736,109820.0,109810.0,2.30370959]
[1748377544907,0.03642164,109820.0,109810.0,2.30370959]
[1748377545593,0.002,109830.0,109820.0,0.57302722]
[1748377545808,0.22051843,109830.0,109820.0,1.66855467]
[1748377546269,0.22051843,109830.0,109820.0,1.65944936]
[1748377546722,0.21141403,109830.0,109820.0,1.65944936]
[1748377546938,0.20230939,109830.0,109820.0,1.65047558]
[1748377547146,0.20230939,109830.0,109820.0,1.61877558]
[1748377547568,0.20230939,109830.0,109820.0,1.61977558]
[1748377548023,0.20230939,109830.0,109820.0,1.61066994]
[1748377548239,0.23470939,109830.0,109820.0,1.61977558]
[1748377548680,0.22560458,109830.0,109820.0,2.01281558]
[1748377549135,0.22560458,109830.0,109820.0,2.01281574]
[1748377549793,0.22560458,109830.0,109820.0,2.30376146]
[1748377550653,0.22560458,109830.0,109820.0,2.3128671]
[1748377551956,0.22560458,109830.0,109820.0,1.96376146]
[1748377552598,0.22560458,109830.0,109820.0,1.9728671]
[1748377552840,0.2164996,109830.0,109820.0,1.96376146]
[1748377554176,0.2480996,109830.0,109820.0,1.48159375]
[1748377554398,0.2480996,109830.0,109820.0,1.7596998]
[1748377556642,0.2480996,109830.0,109820.0,1.7305398]
[1748377556856,0.2480996,109830.0,109820.0,2.0996998]
[1748377557284,0.2480996,109830.0,109820.0,1.95376361]
[1748377558204,0.2480996,109830.0,109820.0,1.60308018]
[1748377558418,0.2480996,109830.0,109820.0,1.69044018]
[1748377558627,0.2480996,109830.0,109820.0,0.78612594]
[1748377558841,0.2480996,109830.0,109820.0,1.69044018]
[1748377562200,0.2480996,109830.0,109820.0,1.67196361]
[1748377564480,0.2480996,109830.0,109820.0,0.78867254]
[1748377565542,0.2480996,109830.0,109820.0,1.24082966]
[1748377570424,0.2480996,109830.0,109820.0,1.15354966]
[1748377570641,0.2480996,109830.0,109820.0,1.24082966]
[1748377573281,0.2480996,109830.0,109820.0,0.78867254]
[1748377574478,0.2480996,109830.0,109820.0,0.87972649]
[1748377575636,0.2480996,109830.0,109820.0,0.78867254]
[1748377601966,0.2164996,109830.0,109820.0,0.78867254]
[1748377608212,0.69925672,109830.0,109820.0,0.33643542]
[1748377608450,0.79031067,109830.0,109820.0,0.33643542]
[1748377608678,0.88136462,109830.0,109820.0,0.33643542]
[1748377608898,0.79031067,109830.0,109820.0,0.33643542]
[1748377612855,1.07179067,109830.0,109820.0,0.33643542]
[1748377617544,1.07179067,109830.0,109820.0,0.0872]
[1748377622334,0.61963355,109830.0,109820.0,0.0872]
[1748377622549,1.07179067,109830.0,109820.0,0.0872]
[1748377624640,0.79031067,109830.0,109820.0,0.0872]
[1748377624854,1.07175067,109830.0,109820.0,0.0872]
[1748377627036,0.2470996,109830.0,109820.0,0.09592]
[1748377627244,0.4655396,109830.0,109820.0,0.09592]
[1748377627459,0.19122183,109820.0,109810.0,0.34189536]
[1748377627664,0.18211619,109820.0,109810.0,0.57261068]
[1748377628745,0.18211619,109820.0,109810.0,0.57661068]
[1748377629869,0.18211619,109820.0,109810.0,0.66766463]
[1748377630325,0.18211619,109820.0,109810.0,0.68155147]
[1748377630773,0.18211619,109820.0,109810.0,0.69796463]
[1748377639478,0.18211619,109820.0,109810.0,0.24580751]
[1748377639730,0.18211619,109820.0,109810.0,0.69796463]
[1748377648847,0.18211619,109820.0,109810.0,0.66476463]
[1748377649763,0.18211619,109820.0,109810.0,0.63446463]
[1748377653237,0.18211619,109820.0,109810.0,0.72551858]
[1748377653485,0.18211619,109820.0,109810.0,0.63446463]
[1748377659856,0.18211619,109820.0,109810.0,1.02754463]
[1748377660108,0.18211619,109820.0,109810.0,0.57538751]
[1748377660378,0.69857331,109820.0,109810.0,0.48433356]
[1748377660601,0.78962726,109820.0,109810.0,0.48433356]
[1748377660826,0.69857331,109820.0,109810.0,0.48433356]
[1748377662001,0.97977331,109820.0,109810.0,0.48433356]
[1748377664033,0.97977331,109820.0,109810.0,0.09125356]
[1748377672598,0.97977331,109820.0,109810.0,0.09113356]
[1748377676631,0.19125666,109800.0,109790.0,0.9574138]
[1748377676852,0.19125666,109800.0,109790.0,1.67917622]
[1748377677959,0.19125666,109800.0,109790.0,1.68417622]
[1748377678800,0.19225666,109800.0,109790.0,1.68817622]
[1748377681831,0.19225666,109800.0,109790.0,1.59712227]
[1748377682045,0.19225666,109800.0,109790.0,1.31600227]
[1748377682256,0.19225666,109800.0,109790.0,1.59704227]
[1748377682750,0.19225666,109800.0,109790.0,1.28450227]
[1748377682971,0.19225666,109800.0,109790.0,1.25270227]
[1748377683656,0.19225666,109800.0,109790.0,1.34375622]
[1748377685467,0.19225666,109800.0,109790.0,1.25270227]
[1748377687425,0.19225666,109800.0,109790.0,1.31370227]
[1748377691536,0.19225666,109800.0,109790.0,1.28270227]
[1748377691954,0.19225666,109800.0,109790.0,1.25270227]
[1748377694011,0.25645666,109800.0,109790.0,0.80038515]
[1748377694243,0.25645666,109800.0,109790.0,0.7093312]
[1748377694448,0.25645666,109800.0,109790.0,0.3693312]
[1748377703369,0.25645666,109800.0,109790.0,0.0963374]
[1748377711587,0.79768844,109800.0,109790.0,0.0963374]
[1748377711805,1.53266485,109800.0,109790.0,0.0094974]
[1748377712025,1.8872057,109800.0,109790.0,0.0094974]
[1748377712243,2.40229314,109800.0,109790.0,0.0094974]
[1748377712494,2.49334709,109800.0,109790.0,0.0094974]
[1748377713209,2.49334709,109800.0,109790.0,0.0044974]
[1748377713422,2.49329577,109800.0,109790.0,0.0074974]
[1748377713653,2.04013865,109800.0,109790.0,0.0034974]
[1748377713860,2.04213865,109800.0,109790.0,0.0014974]
[1748377714276,2.04713865,109800.0,109790.0,0.0014974]
[1748377714496,2.44141677,109800.0,109790.0,0.0024974]
[1748377715995,2.29137759,109800.0,109790.0,0.0024974]
[1748377719882,0.99389146,109800.0,109790.0,0.0024974]
[1748377720120,1.59710755,109800.0,109790.0,0.0024974]
[1748377720764,2.20032364,109800.0,109790.0,0.0024974]
[1748377721226,1.91948364,109800.0,109790.0,0.0024974]
[1748377721485,2.20032364,109800.0,109790.0,0.0024974]
[1748377721724,1.59710755,109800.0,109790.0,0.0024974]
[1748377723435,0.99389146,109800.0,109790.0,0.0024974]
[1748377723655,1.59710755,109800.0,109790.0,0.0024974]
[1748377728829,1.5825667,109800.0,109790.0,0.0024974]
[1748377729762,1.67362065,109800.0,109790.0,0.0024974]
[1748377730469,1.5825667,109800.0,109790.0,0.0024974]
[1748377734159,1.59159409,109800.0,109790.0,0.0024974]
[1748377735124,2.19481018,109800.0,109790.0,0.0024974]
[1748377736657,1.59159409,109800.0,109790.0,0.0024974]
[1748377738125,1.89315428,109800.0,109790.0,0.0024974]
[1748377738558,1.98420823,109800.0,109790.0,0.0024974]
[1748377739063,1.89315428,109800.0,109790.0,0.0024974]
[1748377740216,1.61231428,109800.0,109790.0,0.0024974]
[1748377740459,0.707538,109800.0,109790.0,0.0024974]
[1748377740695,1.60328689,109800.0,109790.0,0.0024974]
[1748377740910,1.81980689,109800.0,109790.0,0.0024974]
[1748377742862,1.82914805,109800.0,109790.0,0.0024974]
[1748377743115,1.81980689,109800.0,109790.0,0.0024974]
[1748377743347,1.36737875,109800.0,109790.0,0.0681974]
[1748377744036,1.36737875,109800.0,109790.0,0.0348974]
[1748377744950,1.36737875,109800.0,109790.0,0.0024974]
[1748377745178,1.81976689,109800.0,109790.0,0.0024974]
[1748377758708,1.81964689,109800.0,109790.0,0.0024974]
[1748377759348,0.91487061,109800.0,109790.0,0.0024974]
[1748377759821,1.81964689,109800.0,109790.0,0.0024974]
[1748377766503,0.91483061,109800.0,109790.0,0.0024974]
[1748377766744,1.81960689,109800.0,109790.0,0.0024974]
[1748377768962,1.53908689,109800.0,109790.0,0.0024974]
[1748377769171,2.48763493,109800.0,109790.0,0.0024974]
[1748377769867,1.46655036,109790.0,109780.0,43.06637151]
[1748377770128,2.0808306,109790.0,109780.0,43.06637151]
[1748377770351,1.6805929,109790.0,109780.0,43.06637151]
[1748377770575,1.7117929,109790.0,109780.0,43.06637151]
[1748377770996,2.16418104,109790.0,109780.0,43.06637151]
[1748377771227,1.7147929,109790.0,109780.0,43.06637151]
[1748377772079,1.41340675,109790.0,109780.0,43.06637151]
[1748377772557,1.41540675,109790.0,109780.0,43.06737151]
[1748377772780,1.41540675,109790.0,109780.0,42.8115067]
[1748377772781,1.35910945,109790.0,109780.0,42.8115067]
[1748377773449,1.30695901,109790.0,109780.0,42.8115067]
[1748377775961,1.30695901,109790.0,109780.0,42.55905278]
[1748377778890,1.58739901,109790.0,109780.0,42.55905278]
[1748377786533,1.64201901,109790.0,109780.0,42.55905278]
[1748377789046,1.36157901,109790.0,109780.0,42.55905278]
[1748377789269,1.73303296,109790.0,109780.0,42.55905278]
[1748377791080,1.7958142,109790.0,109780.0,42.55905278]
[1748377791878,1.5154142,109790.0,109780.0,42.55905278]
[1748377792095,1.76511638,109790.0,109780.0,42.55905278]
[1748377792916,1.67406243,109790.0,109780.0,42.55905278]
[1748377793259,1.64197901,109790.0,109780.0,42.55905278]
[1748377794019,1.94353084,109790.0,109780.0,42.55905278]
[1748377796346,1.94349084,109790.0,109780.0,42.55905278]
[1748377797000,0.62732803,109790.0,109780.0,42.55905278]
[1748377797206,1.36015901,109790.0,109780.0,42.62215278]
[1748377797963,1.07979901,109790.0,109780.0,42.62215278]
[1748377798179,1.36015901,109790.0,109780.0,42.62215278]
[1748377798377,1.07979901,109790.0,109780.0,42.62215278]
[1748377798789,1.36015901,109790.0,109780.0,42.62215278]
[1748377799607,1.07979901,109790.0,109780.0,42.62215278]
[1748377799826,1.36015901,109790.0,109780.0,42.62215278]
[1748377800234,1.07979901,109790.0,109780.0,42.62215278]
[1748377800509,1.36011901,109790.0,109780.0,42.62215278]
[1748377800725,0.90764803,109790.0,109780.0,42.62215278]
[1748377800945,1.07979901,109790.0,109780.0,42.62215278]
[1748377801167,1.36011901,109790.0,109780.0,42.62215278]
[1748377803527,1.07979901,109790.0,109780.0,42.62215278]
[1748377803741,1.02011901,109790.0,109780.0,42.62215278]
[1748377803960,1.02011901,109790.0,109780.0,42.71320673]
[1748377807728,1.02011901,109790.0,109780.0,42.62215278]
[1748377808199,0.56760803,109790.0,109780.0,42.62215278]
[1748377808415,1.02007901,109790.0,109780.0,42.62215278]
[1748377809510,1.02007901,109790.0,109780.0,42.59145278]
[1748377809729,1.02007901,109790.0,109780.0,42.55905278]
[1748377810797,1.02007901,109790.0,109780.0,42.58995278]
[1748377812761,1.02007901,109790.0,109780.0,42.55905278]
[1748377813040,1.62540394,109790.0,109780.0,42.55905278]
[1748377813255,2.41787492,109790.0,109780.0,42.55905278]
[1748377813476,1.96540394,109790.0,109780.0,42.55905278]
[1748377813699,2.028246,109790.0,109780.0,42.55905278]
[1748377816094,1.72663564,109790.0,109780.0,42.55905278]
[1748377820680,1.63560818,109790.0,109780.0,42.55905278]
[1748377820892,1.63560818,109790.0,109780.0,42.55520125]
[1748377825376,1.35532818,109790.0,109780.0,42.55520125]
[1748377825606,0.62732803,109790.0,109780.0,42.58600125]
[1748377825836,0.90748803,109790.0,109780.0,42.6770552]
[1748377826069,1.51081963,109790.0,109780.0,42.58600125]
[1748377826300,1.51081963,109790.0,109780.0,42.70400125]
[1748377826301,0.19627408,109790.0,109780.0,42.70400125]
[1748377826519,0.47643408,109790.0,109780.0,42.70400125]
[1748377826737,0.19627408,109790.0,109780.0,42.70400125]
[1748377827193,0.47343408,109790.0,109780.0,42.70400125]
[1748377827853,0.47643408,109790.0,109780.0,42.70500125]
[1748377828111,0.19427408,109790.0,109780.0,42.70400125]
[1748377828350,0.47443408,109790.0,109780.0,42.70400125]
[1748377828566,0.47743408,109790.0,109780.0,42.70400125]
[1748377828999,0.47743408,109790.0,109780.0,42.71728161]
[1748377832996,0.47743408,109790.0,109780.0,42.70400125]
[1748377836291,1.08076568,109790.0,109780.0,42.70400125]
[1748377836506,1.08076568,109790.0,109780.0,42.67320125]
[1748377836720,1.08076568,109790.0,109780.0,42.64160125]
[1748377846670,0.47743408,109790.0,109780.0,42.64160125]
[1748377846796,0.47743408,109790.0,109780.0,42.7657552]
[1748377847001,0.47731408,109790.0,109780.0,42.7981552]
[1748377847413,0.47731408,109790.0,109780.0,42.80720813]
[1748377848017,0.92955989,109790.0,109780.0,42.80720813]
[1748377849016,0.92955989,109790.0,109780.0,42.71615418]
[1748377849218,0.92955989,109790.0,109780.0,42.70710125]
[1748377850094,0.47731408,109790.0,109780.0,42.70710125]
[1748377850307,0.47731408,109790.0,109780.0,42.71637672]
[1748377850990,0.47731408,109790.0,109780.0,42.70710125]
[1748377858104,0.47731408,109790.0,109780.0,42.7981552]
[1748377858733,0.47731408,109790.0,109780.0,42.70710125]
[1748377862111,1.08032743,109790.0,109780.0,42.67400125]
[1748377862322,1.08032743,109790.0,109780.0,42.64160125]
[1748377862753,1.11142743,109790.0,109780.0,42.64160125]
[1748377863424,0.47723408,109790.0,109780.0,42.64160125]
[1748377863644,0.47723408,109790.0,109780.0,42.7639552]
[1748377864115,0.47723408,109790.0,109780.0,42.7965552]
[1748377866175,0.47723408,109790.0,109780.0,42.7326552]
[1748377869028,0.47723408,109790.0,109780.0,42.7634552]
[1748377870013,0.92948345,109790.0,109780.0,42.7634552]
[1748377870952,0.92948345,109790.0,109780.0,42.67240125]
[1748377870953,0.47723408,109790.0,109780.0,42.67240125]
[1748377871191,0.47723408,109790.0,109780.0,42.64160125]
[1748377871421,0.92948345,109790.0,109780.0,42.64160125]
[1748377871888,0.47723408,109790.0,109780.0,42.64160125]
[1748377872119,0.47723408,109790.0,109780.0,42.70530125]
[1748377872342,0.47723408,109790.0,109780.0,42.7963552]
[1748377873590,0.47723408,109790.0,109780.0,42.80208943]
[1748377873808,0.19727408,109790.0,109780.0,42.80208943]
[1748377874028,0.47719408,109790.0,109780.0,42.80208943]
[1748377874730,0.47419408,109790.0,109780.0,42.80108943]
[1748377875160,0.47519408,109790.0,109780.0,42.80208943]
[1748377875396,0.47219408,109790.0,109780.0,42.80208943]
[1748377875635,0.47319408,109790.0,109780.0,42.80208943]
[1748377875863,0.92544345,109790.0,109780.0,42.67903548]
[1748377876124,0.95714345,109790.0,109780.0,42.67903548]
[1748377876604,1.40939282,109790.0,109780.0,42.56093548]
[1748377876832,1.50044677,109790.0,109780.0,42.56093548]
[1748377877074,1.6852696,109790.0,109780.0,42.56093548]
[1748377877309,2.0252696,109790.0,109780.0,42.56093548]
[1748377877569,1.93421565,109790.0,109780.0,42.56093548]
[1748377878019,1.63298702,109790.0,109780.0,42.56093548]
[1748377878251,1.02971691,109790.0,109780.0,42.56093548]
[1748377878513,1.63298702,109790.0,109780.0,42.56093548]
[1748377878737,1.72404097,109790.0,109780.0,42.56093548]
[1748377884605,1.72404097,109790.0,109780.0,42.55893548]
[1748377887023,1.63298702,109790.0,109780.0,42.55893548]
[1748377889421,1.57001814,109790.0,109780.0,42.55893548]
[1748377890114,1.58455899,109790.0,109780.0,42.55893548]
[1748377890339,1.64745759,109790.0,109780.0,42.55893548]
[1748377891035,1.58455899,109790.0,109780.0,42.32495941]
[1748377891729,1.63917899,109790.0,109780.0,42.32495941]
[1748377892215,1.58455899,109790.0,109780.0,42.32495941]
[1748377893285,1.30463899,109790.0,109780.0,42.32495941]
[1748377893505,1.57385814,109790.0,109780.0,42.32495941]
[1748377894586,1.29009814,109790.0,109780.0,42.32495941]
[1748377894799,1.57377814,109790.0,109780.0,42.32495941]
[1748377895017,1.06156198,109790.0,109780.0,42.32495941]
[1748377895251,1.66483209,109790.0,109780.0,42.32495941]
[1748377895980,1.66587209,109790.0,109780.0,42.32495941]
[1748377901969,1.68041294,109790.0,109780.0,42.32495941]
[1748377902214,1.82947314,109790.0,109780.0,42.32495941]
[1748377902431,1.76665294,109790.0,109780.0,42.30361587]
[1748377902883,1.82847069,109790.0,109780.0,42.30361587]
[1748377903769,1.82747069,109790.0,109780.0,42.30261587]
[1748377904233,1.83247069,109790.0,109780.0,42.30361587]
[1748377904452,1.76665294,109790.0,109780.0,42.30261587]
[1748377904673,1.76465294,109790.0,109780.0,42.30261587]
[1748377904950,1.07832888,109790.0,109780.0,42.30361587]
[1748377905175,1.68159899,109790.0,109780.0,42.30361587]
[1748377906561,1.31063899,109790.0,109780.0,42.30361587]
[1748377906797,1.29609814,109790.0,109780.0,42.30361587]
[1748377907017,1.58065814,109790.0,109780.0,42.30361587]
[1748377907239,1.29609814,109790.0,109780.0,42.30361587]
[1748377907477,1.58077814,109790.0,109780.0,42.30361587]
[1748377908381,1.67183209,109790.0,109780.0,42.30361587]
[1748377908839,1.58077814,109790.0,109780.0,42.30361587]
[1748377910154,1.23359814,109790.0,109780.0,42.30361587]
[1748377910362,1.51799814,109790.0,109780.0,42.30361587]
[1748377910810,0.91472803,109790.0,109780.0,42.30361587]
[1748377911490,1.51799814,109790.0,109780.0,42.30361587]
[1748377914781,1.51967814,109790.0,109780.0,42.30361587]
[1748377917354,0.91640803,109790.0,109780.0,42.30361587]
[1748377917577,1.51967814,109790.0,109780.0,42.39466982]
[1748377918021,1.51967814,109790.0,109780.0,42.30361587]
[1748377922478,1.58261886,109790.0,109780.0,42.30361587]
[1748377923122,1.51967814,109790.0,109780.0,42.11014643]
[1748377925586,0.63032803,109790.0,109780.0,42.14084643]
[1748377925802,0.91636803,109790.0,109780.0,42.17394643]
[1748377926017,0.63032803,109790.0,109780.0,42.26500038]
[1748377926241,0.91632803,109790.0,109780.0,42.17394643]
[1748377926806,0.82523408,109790.0,109780.0,42.17394643]
[1748377928038,0.19927408,109790.0,109780.0,42.26278643]
[1748377928243,0.53927408,109790.0,109780.0,42.26278643]
[1748377928457,0.82519408,109790.0,109780.0,42.26278643]
[1748377928675,0.53927408,109790.0,109780.0,42.35384038]
[1748377928880,0.48523408,109790.0,109780.0,42.35384038]
[1748377929908,0.48523408,109790.0,109780.0,42.26278643]
[1748377933535,0.48123408,109790.0,109780.0,42.26178643]
[1748377933742,0.48023408,109790.0,109780.0,42.26178643]
[1748377933944,0.48323408,109790.0,109780.0,42.26278643]
[1748377936729,0.48271408,109790.0,109780.0,42.26278643]
[1748377939552,0.48271408,109790.0,109780.0,42.35384038]
[1748377940180,0.48271408,109790.0,109780.0,42.26278643]
[1748377941565,0.48271408,109790.0,109780.0,42.2570522]
[1748377941922,0.48275408,109790.0,109780.0,42.2570522]
[1748377943978,0.48275408,109790.0,109780.0,42.2269522]
[1748377948268,1.08602419,109790.0,109780.0,42.1938522]
[1748377948487,1.67033209,109790.0,109780.0,42.1044122]
[1748377949801,1.57927814,109790.0,109780.0,42.1044122]
[1748377953986,0.97512803,109790.0,109780.0,42.1044122]
[1748377956870,0.69052803,109790.0,109780.0,42.1044122]
[1748377957029,0.91304803,109790.0,109780.0,42.1044122]
[1748377957715,0.91300803,109790.0,109780.0,42.1044122]
[1748377960296,0.19727408,109790.0,109780.0,42.19546615]
[1748377960518,0.19727408,109790.0,109780.0,42.25926615]
[1748377960734,0.48171408,109790.0,109780.0,42.25926615]
[1748377962505,0.48171408,109790.0,109780.0,42.34870615]
[1748377974232,0.48171408,109790.0,109780.0,42.28490615]
[1748377974777,0.48171408,109790.0,109780.0,42.31780615]
[1748377977032,0.19727408,109790.0,109780.0,42.31780615]
[1748377977237,0.48035408,109790.0,109780.0,42.28490615]
[1748377977469,0.19727408,109790.0,109780.0,42.95117626]
[1748377977695,0.48027408,109790.0,109780.0,42.95117626]
[1748377977906,0.19727408,109790.0,109780.0,42.95117626]
[1748377978118,0.48027408,109790.0,109780.0,42.34790615]
[1748377980046,0.19727408,109790.0,109780.0,42.95117626]
[1748377980268,0.48007408,109790.0,109780.0,43.04223021]
[1748377980500,0.19727408,109790.0,109780.0,43.04223021]
[1748377980717,0.20638212,109790.0,109780.0,43.33413933]
[1748377980971,0.21548991,109790.0,109780.0,43.54908063]
[1748377981185,0.20638212,109790.0,109780.0,43.53086272]
[1748377981662,0.19427416,109790.0,109780.0,43.53086272]
[1748377981885,0.18516595,109790.0,109780.0,43.34968018]
[1748377982118,0.003,109790.0,109780.0,43.84938039]
[1748377982360,0.20338212,109790.0,109780.0,43.84027168]
[1748377982580,0.20338212,109790.0,109780.0,43.83116272]
[1748377982581,0.18516595,109790.0,109780.0,43.83116272]
[1748377982809,0.18216595,109790.0,109780.0,43.83016272]
[1748377983026,0.18316595,109790.0,109780.0,43.83016272]
[1748377983238,0.18316595,109790.0,109780.0,43.83927176]
[1748377983887,0.01921601,109790.0,109780.0,43.87659797]
[1748377984103,0.22870609,109790.0,109780.0,43.86748943]
[1748377984320,0.21959846,109790.0,109780.0,43.87659805]
[1748377984758,0.03743251,109790.0,109780.0,43.87659747]
[1748377985418,0.02832364,109790.0,109780.0,43.87659747]
[1748377985626,0.2195978,109790.0,109780.0,43.87659747]
[1748377985841,0.03743185,109790.0,109780.0,43.87659747]
[1748377986480,0.03743185,109790.0,109780.0,44.26979747]
[1748377986929,0.2195978,109790.0,109780.0,44.26979747]
[1748377987139,0.03743185,109790.0,109780.0,43.97049747]
[1748377987361,0.2195978,109790.0,109780.0,43.97049747]
[1748377987579,0.01921551,109790.0,109780.0,44.31049747]
[1748377987788,0.02832347,109790.0,109780.0,44.31049747]
[1748377988482,0.0374316,109790.0,109780.0,44.31049747]
[1748377989583,0.0374316,109790.0,109780.0,44.2831716]
[1748377989584,0.22870584,109790.0,109780.0,44.2831716]
[1748377989797,0.22870584,109790.0,109780.0,44.29228039]
[1748377990242,0.21959821,109790.0,109780.0,44.29228039]
[1748377991527,0.21049033,109790.0,109780.0,44.27406264]
[1748377992870,0.21049033,109790.0,109780.0,44.57336264]
[1748377993538,0.20138237,109790.0,109780.0,44.5642536]
[1748377996385,0.20138237,109790.0,109780.0,44.38207106]
[1748377998179,0.20138237,109790.0,109780.0,44.58247159]
[1748377998644,0.20138237,109790.0,109780.0,44.58247168]
[1748377999325,0.20138237,109790.0,109780.0,44.59158047]
[1748377999791,0.20138237,109790.0,109780.0,44.59158055]
[1748378000020,0.20138237,109790.0,109780.0,44.60068934]
[1748378001182,0.20138237,109790.0,109780.0,44.59158055]
[1748378002083,0.20138237,109790.0,109780.0,44.06497106]
[1748378002310,0.23178237,109790.0,109780.0,42.97540615]
[1748378002771,0.23178237,109790.0,109780.0,42.88796615]
[1748378002990,0.26408237,109790.0,109780.0,42.97540615]
[1748378004354,0.26408237,109790.0,109780.0,43.0664601]
[1748378004875,0.26408237,109790.0,109780.0,42.7671601]
[1748378006856,0.26408237,109790.0,109780.0,42.6797201]
[1748378007083,0.26408237,109790.0,109780.0,42.7671601]
[1748378007984,0.26408237,109790.0,109780.0,42.67610615]
[1748378008912,0.20138237,109790.0,109780.0,43.27937626]
[1748378009144,0.20138237,109790.0,109780.0,43.31037626]
[1748378009605,0.20138237,109790.0,109780.0,43.27937626]
[1748378013192,0.20138237,109790.0,109780.0,43.03690699]
[1748378013398,0.20138237,109790.0,109780.0,43.12796094]
[1748378020367,0.20138237,109790.0,109780.0,42.90499852]
[1748378028036,0.20138237,109790.0,109780.0,43.20588651]
[1748378029699,0.20138237,109790.0,109780.0,43.38806905]
[1748378031220,0.20138237,109790.0,109780.0,43.20588651]
[1748378031447,0.20138237,109790.0,109780.0,43.38806905]
[1748378031699,0.20138237,109790.0,109780.0,43.20588651]
[1748378032407,0.20138237,109790.0,109780.0,43.38806905]
[1748378032855,0.20138237,109790.0,109780.0,43.39717817]
[1748378033106,0.001,109790.0,109780.0,43.95462444]
[1748378033368,0.001,109790.0,109780.0,43.96462444]
[1748378033827,0.01010771,109790.0,109780.0,43.96462444]
[1748378034050,0.01010771,109790.0,109780.0,43.96362444]
[1748378034280,0.01010771,109790.0,109780.0,43.96562444]
[1748378034500,0.02832346,109790.0,109780.0,44.26492444]
[1748378034966,0.01010771,109790.0,109780.0,44.60492444]
[1748378035185,0.01821559,109790.0,109780.0,44.60492444]
[1748378035402,0.20086488,109800.0,109790.0,0.20038196]
[1748378035619,0.20086488,109800.0,109790.0,1.63094796]
[1748378036041,0.20086488,109800.0,109790.0,1.32936716]
[1748378037153,0.20186488,109800.0,109790.0,1.32936716]
[1748378037376,0.20286488,109800.0,109790.0,1.32936716]
[1748378037835,0.20186488,109800.0,109790.0,1.32936716]
[1748378038267,0.20086488,109800.0,109790.0,1.33036716]
[1748378038734,0.20086232,109800.0,109790.0,1.34047495]
[1748378039421,0.20086232,109800.0,109790.0,1.42743495]
[1748378039851,0.20086232,109800.0,109790.0,0.73403385]
[1748378040076,0.20086232,109800.0,109790.0,1.25466549]
[1748378040301,0.20086232,109800.0,109790.0,1.2637737]
[1748378041590,0.20086232,109800.0,109790.0,1.27288183]
[1748378041786,0.20086232,109800.0,109790.0,1.2637737]
[1748378041968,0.20086232,109800.0,109790.0,1.35482765]
[1748378043133,0.19175519,109800.0,109790.0,1.35482765]
[1748378044161,0.18264781,109800.0,109790.0,1.73887944]
[1748378045368,0.18264781,109800.0,109790.0,1.74798765]
[1748378047163,0.18264781,109800.0,109790.0,1.73887944]
[1748378047604,0.18264781,109800.0,109790.0,1.5476052]
[1748378048638,0.21354781,109800.0,109790.0,1.5476052]
[1748378048845,0.24574781,109800.0,109790.0,1.5476052]
[1748378049530,0.21484781,109800.0,109790.0,1.5476052]
[1748378050428,0.18264781,109800.0,109790.0,1.5476052]
[1748378051304,0.18264781,109800.0,109790.0,1.5475252]
[1748378052407,0.18264781,109800.0,109790.0,1.45647125]
[1748378054818,0.24654781,109800.0,109790.0,1.08879125]
[1748378055039,0.24654781,109800.0,109790.0,1.17575125]
[1748378056162,0.24654781,109800.0,109790.0,1.02522586]
[1748378066684,0.24654781,109800.0,109790.0,1.20739181]
[1748378066952,0.24654781,109800.0,109790.0,1.11627981]
[1748378079001,0.24654781,109800.0,109790.0,1.39695981]
[1748378080975,0.24654781,109800.0,109790.0,0.57289395]
[1748378081203,0.24654781,109800.0,109790.0,1.02494586]
[1748378081410,0.24654781,109800.0,109790.0,0.77992362]
[1748378085935,0.24654781,109800.0,109790.0,0.53873191]
[1748378086586,0.24654781,109800.0,109790.0,0.39342246]
[1748378088033,0.24654781,109800.0,109790.0,0.08668]
[1748378088240,0.24654781,109800.0,109790.0,0.53873191]
[1748378089472,0.24654781,109800.0,109790.0,0.45205191]
[1748378089692,0.24654781,109800.0,109790.0,0.53869191]
[1748378094507,0.22387408,109790.0,109780.0,42.03114051]
[1748378094726,0.25567408,109790.0,109780.0,42.56983242]
[1748378094943,0.25567408,109790.0,109780.0,42.85047242]
[1748378095813,0.25667408,109790.0,109780.0,42.85247242]